bitfinex-derivatives/quotes_ETHF0:USTF0_20260312
["timestamp","ask_amount","ask_price","bid_price","bid_amount"]
[1773338333986,0.00604284,2060.4,2059.4,0.57736527]
[1773338334293,0.60160571,2060.4,2059.4,0.57736527]
[1773338336896,0.60160571,2060.4,2059.6,0.57736527]
[1773338337098,0.60160571,2060.4,2059.8,0.82351527]
[1773338337596,0.60160571,2060.4,2059.8,0.57736527]
[1773338341595,0.59556287,2059.7,2059.2,0.0268586]
[1773338342697,0.59556287,2059.7,2059.2,0.60422387]
[1773338342893,0.59556287,2059.9,2059.2,0.60422387]
[1773338343299,0.59556287,2060.2,2059.2,0.60422387]
[1773338349104,0.59556287,2060.0,2059.2,0.0268586]
[1773338349510,0.59556287,2059.8,2059.0,0.022]
[1773338350313,0.59556287,2059.6,2059.0,0.59936527]
[1773338350515,0.59556287,2059.6,2059.0,0.60397948]
[1773338352815,0.59556287,2059.6,2059.0,0.02661421]
[1773338353618,0.59556287,2059.4,2059.0,0.02661421]
[1773338353822,0.59556287,2059.4,2058.8,0.022]
[1773338354525,0.59556287,2059.4,2058.8,0.59936527]
[1773338354726,0.59556287,2059.4,2058.8,0.60498285]
[1773338354925,0.59556287,2059.4,2058.8,0.02761758]
[1773338359030,0.59556287,2059.4,2058.8,0.60498285]
[1773338360429,0.59556287,2059.4,2058.8,0.02761758]
[1773338362932,0.5678865,2059.2,2058.4,0.022]
[1773338363123,0.5678865,2059.2,2058.4,0.60923579]
[1773338363432,0.5678865,2059.2,2058.4,0.61274866]
[1773338370537,5.94080768,2059.5,2058.4,0.02551287]
[1773338370538,0.5678865,2059.0,2058.4,0.02551287]
[1773338372237,0.5678865,2059.0,2058.4,0.61274866]
[1773338376538,0.5678865,2058.9,2058.2,0.022]
[1773338376934,0.5678865,2058.7,2058.2,0.022]
[1773338377131,0.5678865,2058.5,2058.0,0.022]
[1773338377337,0.5678865,2058.5,2057.8,0.60923579]
[1773338377538,0.57141367,2058.5,2057.8,0.6148409]
[1773338379539,0.57141367,2058.5,2057.6,0.60923579]
[1773338379740,0.5678865,2058.3,2057.6,0.022]
[1773338379940,0.5678865,2058.1,2057.6,0.022]
[1773338380135,0.5678865,2058.1,2057.4,0.022]
[1773338380444,0.5678865,2058.1,2057.4,0.60923579]
[1773338380638,0.5678865,2058.1,2057.5,0.58723579]
[1773338381041,0.5678865,2058.1,2057.4,0.0279644]
[1773338381246,0.5678865,2058.1,2057.4,0.61520019]
[1773338383949,0.5678865,2058.1,2057.5,0.83043217]
[1773338384242,0.5678865,2058.1,2057.8,0.83171217]
[1773338384844,0.5678865,2058.1,2057.8,0.24437]
[1773338385044,0.5678865,2058.1,2057.7,0.83099217]
[1773338385844,0.5678865,2058.1,2057.8,0.83939217]
[1773338387549,0.58138811,2058.3,2057.8,0.58734217]
[1773338388050,0.58138811,2058.4,2058.0,0.58734217]
[1773338388252,0.58138811,2058.4,2058.1,0.84385217]
[1773338388452,0.38560751,2058.4,2058.1,0.25651]
[1773338388846,0.38560751,2058.4,2057.4,6.6289444]
[1773338388847,0.38560751,2058.4,2057.5,0.58734217]
[1773338389052,0.38560751,2058.4,2057.7,0.83803217]
[1773338389258,0.38560751,2058.4,2057.8,0.83679217]
[1773338389556,0.38560751,2058.4,2057.8,0.83289217]
[1773338390058,0.38560751,2058.4,2057.8,0.58734217]
[1773338390353,0.38560751,2058.4,2057.8,0.83222217]
[1773338390756,0.38560751,2058.4,2057.5,0.59298805]
[1773338392751,0.00352717,2058.5,2057.5,0.59298805]
[1773338392955,0.5635885,2058.5,2057.5,0.59298805]
[1773338396258,0.5635885,2058.5,2057.6,0.59298805]
[1773338396448,0.5635885,2058.5,2057.9,0.59298805]
[1773338396649,0.5635885,2058.5,2057.9,0.84124805]
[1773338397457,0.5635885,2058.5,2057.9,0.59298805]
[1773338400260,0.5635885,2058.5,2057.5,0.59298805]
[1773338400761,0.00352717,2058.5,2057.7,0.59298805]
[1773338401259,0.56006133,2058.4,2057.6,0.59298805]
[1773338401659,0.56006133,2058.2,2057.6,0.59298805]
[1773338402960,0.56006133,2058.4,2057.6,0.59298805]
[1773338404359,0.5635885,2058.5,2057.6,0.59298805]
[1773338405566,0.00352717,2058.5,2057.7,8.45596309]
[1773338405866,0.00352717,2058.5,2057.9,0.84242805]
[1773338406063,0.00352717,2058.5,2058.0,0.83826805]
[1773338406363,0.00352717,2058.5,2058.2,0.84250805]
[1773338406562,0.56006133,2059.1,2058.0,0.83756805]
[1773338406766,0.56006133,2059.0,2058.2,0.59298805]
[1773338406967,0.56006133,2058.9,2058.2,0.59298805]
[1773338407464,0.56578071,2058.9,2058.2,0.59298805]
[1773338410264,0.00571938,2058.9,2058.2,0.59298805]
[1773338410959,0.56578071,2058.9,2058.2,0.59298805]
[1773338412469,0.56006133,2058.4,2057.7,0.59298805]
[1773338412663,0.56006133,2058.2,2057.7,0.59298805]
[1773338412864,0.56006133,2058.4,2057.7,0.59298805]
[1773338413069,0.56006133,2058.5,2057.7,0.59298805]
[1773338413372,0.56006133,2058.5,2057.8,0.59298805]
[1773338413969,0.56006133,2058.8,2057.8,0.59298805]
[1773338414274,0.56006133,2058.8,2058.1,0.59298805]
[1773338414569,0.56006133,2059.0,2058.2,0.59298805]
[1773338415072,5.58689195,2059.3,2058.0,0.59298805]
[1773338415073,0.56006133,2058.7,2058.0,0.59298805]
[1773338415468,0.56006133,2058.7,2057.8,6.94998805]
[1773338415668,0.56006133,2058.7,2057.9,0.59298805]
[1773338416773,0.80288133,2058.8,2057.9,0.59298805]
[1773338416979,0.56006133,2058.8,2058.0,0.59298805]
[1773338417576,0.00571938,2058.9,2058.0,0.59298805]
[1773338418082,0.56578071,2058.9,2058.0,0.59298805]
[1773338418282,0.56578071,2058.9,2058.1,0.83944805]
[1773338418483,0.00571938,2058.9,2058.3,0.59298805]
[1773338418683,0.00571938,2058.9,2058.3,0.83738805]
[1773338418982,0.00571938,2058.9,2057.9,2.83038619]
[1773338418983,0.00571938,2058.9,2058.5,0.84162805]
[1773338419178,0.00571938,2058.9,2057.8,16.6088352]
[1773338419179,0.56578071,2058.9,2058.3,0.59298805]
[1773338419774,0.00571938,2058.9,2058.3,0.59298805]
[1773338420283,0.80283133,2059.2,2058.3,0.59298805]
[1773338420783,0.58022326,2059.4,2058.5,0.80887483]
[1773338421084,0.58438936,2059.4,2058.8,0.56489483]
[1773338421675,0.58385167,2059.2,2058.4,0.56489483]
[1773338423481,0.24278,2059.1,2058.4,0.56489483]
[1773338423684,0.58385167,2059.0,2058.4,0.56489483]
[1773338423883,0.58972549,2059.4,2058.4,0.56489483]
[1773338424378,0.58555939,2059.2,2058.4,0.56489483]
[1773338425084,0.0041661,2059.4,2058.4,0.56489483]
[1773338425285,0.58972549,2059.4,2058.4,0.56489483]
[1773338425481,0.0041661,2059.4,2058.4,0.56489483]
[1773338425785,0.0041661,2059.4,2058.5,0.56489483]
[1773338426376,0.0041661,2059.4,2058.5,0.81006483]
[1773338426886,0.0041661,2059.4,2058.6,0.81818483]
[1773338427085,0.0041661,2059.4,2058.7,0.81946483]
[1773338427286,0.5821907,2059.4,2058.9,0.81989483]
[1773338427586,0.5821907,2059.4,2059.1,0.81862483]
[1773338427790,0.5821907,2059.4,2059.1,0.25373]
[1773338428782,1.04257464,2059.7,2059.0,0.56489483]
[1773338429188,0.58057464,2059.6,2059.0,0.56489483]
[1773338429987,0.58590513,2059.6,2059.0,0.56489483]
[1773338430288,0.58590513,2059.6,2058.9,0.56979015]
[1773338431488,0.58208843,2059.4,2058.9,0.56979015]
[1773338431682,0.58208843,2059.4,2058.9,0.00489532]
[1773338431882,0.57378457,2059.2,2058.6,0.56489483]
[1773338432982,0.24276,2059.3,2058.6,0.56489483]
[1773338433189,0.57378457,2059.3,2058.6,0.56934505]
[1773338433386,0.57378457,2059.5,2058.6,0.56934505]
[1773338434684,0.57669662,2059.6,2058.6,0.56934505]
[1773338435685,0.00533049,2059.6,2058.6,0.56934505]
[1773338435886,0.00533049,2059.6,2058.6,8.18772009]
[1773338436086,0.00533049,2059.6,2058.7,0.80939483]
[1773338436285,0.00533049,2059.6,2058.9,0.81033483]
[1773338436486,0.00533049,2059.6,2059.0,0.80892483]
[1773338436687,0.00533049,2059.6,2059.2,0.81500483]
[1773338436894,0.59218576,2060.5,2059.7,0.56489483]
[1773338437094,0.59218576,2060.5,2059.8,0.56489483]
[1773338437290,0.57018576,2060.5,2060.3,0.022]
[1773338437489,0.57018576,2060.5,2060.1,0.58689483]
[1773338437688,0.28664689,2061.0,2060.1,0.58689483]
[1773338437689,0.59218576,2061.0,2060.1,0.58689483]
[1773338437889,0.59218576,2061.0,2060.1,0.5908815]
[1773338437890,0.63618576,2060.5,2060.1,0.5908815]
[1773338438094,0.63618576,2060.5,2060.1,0.02598667]
[1773338438395,0.59218576,2060.1,2059.5,0.022]
[1773338439292,0.59218576,2060.1,2059.5,0.02638967]
[1773338439492,0.59218576,2059.9,2059.5,0.02638967]
[1773338439687,0.2427,2059.8,2059.3,0.022]
[1773338439894,0.59218576,2059.7,2059.3,0.022]
[1773338440196,0.83488576,2059.8,2059.3,0.58689483]
[1773338440396,0.59218576,2059.7,2059.3,0.58689483]
[1773338440696,0.59218576,2059.7,2059.3,0.59159374]
[1773338441094,0.59218576,2059.5,2059.1,0.022]
[1773338441494,0.59218576,2059.5,2058.9,0.58689483]
[1773338441994,0.24272,2059.6,2058.9,0.58689483]
[1773338442194,0.00574979,2059.5,2058.9,0.59097846]
[1773338444301,0.58299809,2059.5,2058.9,0.59097846]
[1773338446499,0.5772483,2059.3,2058.9,0.02608363]
[1773338446806,0.5772483,2059.3,2058.7,0.58363183]
[1773338447103,0.8199983,2059.4,2058.7,0.58363183]
[1773338447299,0.5772483,2059.3,2058.7,0.022]
[1773338447506,0.5772483,2059.3,2058.7,0.58363183]
[1773338447703,0.5772483,2059.3,2058.7,0.58738458]
[1773338448402,0.5772483,2059.1,2058.5,0.58363183]
[1773338449401,0.00574979,2059.5,2058.5,0.022]
[1773338449402,0.5772483,2058.9,2058.5,0.022]
[1773338450806,0.5772483,2058.9,2058.3,0.58363183]
[1773338451508,0.24279,2059.0,2058.3,0.58363183]
[1773338451699,0.58866895,2059.2,2058.3,0.58363183]
[1773338460806,0.58866895,2059.0,2058.3,0.022]
[1773338461511,5.97719979,2059.5,2058.1,0.022]
[1773338461512,0.58866895,2058.4,2058.1,0.022]
[1773338461708,0.58866895,2058.4,2057.9,0.58924764]
[1773338461911,0.58866895,2058.4,2057.9,0.022]
[1773338462408,0.58866895,2058.1,2057.3,0.58924764]
[1773338465210,0.58866895,2057.9,2057.3,0.022]
[1773338465411,0.59347791,2057.9,2057.3,0.58924764]
[1773338467109,0.00480896,2057.9,2057.3,0.58924764]
[1773338467510,0.59347791,2057.9,2057.3,0.58924764]
[1773338467914,0.59347791,2057.9,2057.3,0.022]
[1773338468310,0.58866895,2057.7,2057.1,0.022]
[1773338468517,0.58866895,2057.5,2056.9,0.022]
[1773338468716,0.58866895,2057.5,2056.7,0.022]
[1773338469409,9.18854112,2057.8,2056.7,0.58924764]
[1773338469410,0.58866895,2057.3,2056.7,0.58924764]
[1773338470521,0.58866895,2057.7,2056.7,0.58924764]
[1773338471115,0.24298,2057.4,2056.7,0.022]
[1773338471311,0.58866895,2057.3,2056.7,0.022]
[1773338473125,0.58866895,2057.3,2056.7,0.58924764]
[1773338473320,0.58866895,2057.5,2056.7,0.58924764]
[1773338474817,0.58866895,2057.8,2056.7,0.58924764]
[1773338478720,0.58866895,2057.8,2056.9,0.56724764]
[1773338479026,0.58866895,2057.6,2057.0,0.56724764]
[1773338479421,0.58866895,2057.6,2056.8,0.56724764]
[1773338479824,0.58866895,2057.2,2056.7,0.022]
[1773338480129,0.58866895,2057.0,2056.5,0.022]
[1773338480427,0.56388503,2057.5,2056.6,0.56724764]
[1773338480823,0.56388503,2057.3,2056.6,0.56724764]
[1773338481224,0.56388503,2057.3,2056.5,0.022]
[1773338481626,0.56388503,2057.3,2056.5,0.57144468]
[1773338482225,0.56388503,2057.3,2056.3,0.022]
[1773338482529,0.56388503,2056.9,2056.3,0.022]
[1773338482727,0.56388503,2056.7,2056.0,0.54944468]
[1773338483021,0.56388503,2056.7,2056.1,0.57144468]
[1773338483623,0.56388503,2056.7,2056.1,0.022]
[1773338484528,0.56388503,2056.7,2056.1,0.57144468]
[1773338485132,0.56388503,2057.2,2056.1,0.57144468]
[1773338486028,0.56388503,2057.2,2056.2,0.54944468]
[1773338487029,0.56388503,2057.0,2056.2,0.54944468]
[1773338487731,0.56388503,2057.0,2056.1,0.022]
[1773338488027,0.56388503,2057.0,2056.1,0.57144468]
[1773338488524,0.56388503,2056.8,2056.1,0.57144468]
[1773338490032,0.56388503,2057.3,2056.1,0.57144468]
[1773338491527,0.56388503,2057.3,2056.4,0.54944468]
[1773338491733,0.56388503,2057.3,2056.6,0.54944468]
[1773338493227,0.56388503,2057.3,2056.7,0.54944468]
[1773338494034,0.56388503,2057.3,2056.5,0.54944468]
[1773338494333,0.56388503,2057.3,2056.6,0.54944468]
[1773338496430,0.56388503,2057.3,2056.8,0.54944468]
[1773338496631,0.56388503,2057.3,2057.0,0.54944468]
[1773338496942,0.56388503,2057.8,2057.1,0.79323468]
[1773338497238,0.56388503,2057.8,2057.2,0.54944468]
[1773338498137,0.00480896,2057.9,2057.2,0.54944468]
[1773338498330,0.56869399,2057.9,2057.3,0.79305468]
[1773338498531,0.56869399,2057.9,2057.5,0.79313468]
[1773338498732,0.56869399,2057.9,2057.5,0.54944468]
[1773338500130,0.00480896,2057.9,2057.5,0.54944468]
[1773338500331,0.42011712,2058.2,2057.5,0.54944468]
[1773338500531,0.42011712,2058.4,2057.5,0.54944468]
[1773338500837,0.42011712,2058.4,2057.2,3.0785878]
[1773338500838,0.42011712,2058.4,2057.7,0.54944468]
[1773338501231,0.42566764,2058.4,2057.7,0.00455873]
[1773338501434,0.4213904,2058.2,2057.3,0.54944468]
[1773338501637,0.4213904,2058.0,2057.1,0.54944468]
[1773338503834,0.42502566,2057.8,2056.8,0.56878863]
[1773338506338,0.42502566,2057.8,2057.1,0.56878863]
[1773338506539,0.42502566,2057.8,2057.2,0.56878863]
[1773338506740,0.42502566,2057.8,2057.2,0.81258863]
[1773338507040,0.42502566,2057.8,2057.2,0.56878863]
[1773338507339,0.42502566,2057.8,2056.7,0.56878863]
[1773338508039,0.24295,2057.7,2056.7,0.56878863]
[1773338508337,0.42315911,2057.4,2056.7,0.56878863]
[1773338508736,0.24297,2057.5,2056.7,0.56878863]
[1773338508934,0.42429845,2057.8,2056.7,0.56878863]
[1773338510740,0.42429845,2057.8,2056.8,0.55754182]
[1773338511239,0.24295,2057.7,2056.8,0.55754182]
[1773338511443,0.42947436,2057.6,2056.8,0.55754182]
[1773338511735,0.24297,2057.5,2056.8,0.55754182]
[1773338511938,0.42947436,2057.4,2056.5,0.55754182]
[1773338512136,0.243,2057.3,2056.5,0.55754182]
[1773338512342,0.42947436,2057.2,2056.5,0.55754182]
[1773338514444,0.243,2057.3,2056.7,0.55754182]
[1773338514834,0.66541672,2057.3,2056.7,0.55754182]
[1773338515942,0.42241672,2057.7,2056.7,0.55754182]
[1773338519538,0.24295,2057.8,2056.7,0.55754182]
[1773338519742,0.42123636,2057.7,2056.8,0.55754182]
[1773338519942,0.42123636,2057.7,2057.0,0.55754182]
[1773338520436,0.24295,2057.8,2057.1,0.55754182]
[1773338520642,0.42123636,2058.0,2057.4,0.55754182]
[1773338520946,0.42389255,2058.2,2057.8,0.55754182]
[1773338521146,0.42389255,2058.2,2057.3,0.55754182]
[1773338521349,0.24288,2058.3,2057.6,0.55754182]
[1773338521543,0.42389255,2058.2,2057.9,0.80266182]
[1773338521749,0.66677255,2058.3,2057.9,0.80266182]
[1773338521948,0.66677255,2058.3,2057.9,0.55754182]
[1773338522539,0.00555052,2058.4,2057.9,0.55754182]
[1773338522739,0.29573581,2059.3,2058.3,0.55754182]
[1773338522944,0.64327589,2059.3,2058.7,0.55754182]
[1773338523245,0.75126858,2059.6,2059.1,0.57954182]
[1773338523545,0.4037285,2059.6,2059.1,0.57954182]
[1773338523849,0.40890548,2059.6,2059.1,0.58401119]
[1773338524753,0.34754008,2059.5,2059.1,0.58401119]
[1773338525955,0.00517698,2059.6,2059.1,0.58401119]
[1773338526155,0.24259,2060.8,2059.3,0.55754182]
[1773338526360,0.40826956,2060.5,2059.3,0.55754182]
[1773338526655,0.38626956,2060.2,2059.7,0.022]
[1773338526953,0.38626956,2060.2,2059.5,0.022]
[1773338526954,0.37113462,2060.0,2059.5,0.022]
[1773338527154,0.34361233,2059.9,2059.5,0.57954182]
[1773338527349,0.57738816,2061.0,2059.8,0.55754182]
[1773338527553,12.32297,2061.8,2060.4,0.55754182]
[1773338527554,0.57738816,2061.4,2060.4,0.55754182]
[1773338527747,0.57738816,2061.8,2060.4,0.55754182]
[1773338527954,6.358,2062.2,2061.2,0.57954182]
[1773338527955,3.41296596,2062.2,2061.2,0.57954182]
[1773338528259,5.96338,2062.3,2060.6,0.022]
[1773338528260,0.57738816,2061.2,2060.6,0.022]
[1773338528454,0.58334326,2061.2,2060.6,0.02683917]
[1773338528649,0.58334326,2061.2,2060.4,0.57954182]
[1773338528650,0.57738816,2060.9,2060.4,0.022]
[1773338528852,0.24258,2060.8,2060.1,0.55754182]
[1773338529053,0.57738816,2060.6,2060.0,0.022]
[1773338529257,0.57738816,2060.6,2059.8,0.022]
[1773338529460,0.57738816,2060.6,2059.8,0.57954182]
[1773338529656,0.57738816,2060.6,2059.8,0.58358814]
[1773338530061,0.57738816,2060.3,2059.6,0.022]
[1773338530457,0.57738816,2060.5,2059.6,0.57954182]
[1773338531160,0.57738816,2060.5,2059.6,0.58485644]
[1773338531366,0.57738816,2060.3,2059.6,0.02731462]
[1773338531666,0.57738816,2060.3,2059.4,0.57954182]
[1773338532566,0.57738816,2060.3,2059.4,0.58072577]
[1773338533763,0.57738816,2060.5,2059.4,0.58072577]
[1773338535969,0.57738816,2060.0,2059.4,0.02318395]
[1773338536169,0.57738816,2060.5,2059.4,0.58072577]
[1773338536767,0.79738816,2060.6,2059.4,0.58072577]
[1773338536974,0.57738816,2060.5,2059.6,0.55754182]
[1773338539968,0.57738816,2060.3,2059.4,0.58072577]
[1773338542170,0.58809432,2060.1,2059.4,0.58072577]
[1773338544274,0.58805011,2060.5,2059.4,0.58072577]
[1773338545078,0.58005986,2060.3,2059.4,0.58072577]
[1773338546372,0.58005986,2060.1,2059.4,0.02318395]
[1773338546675,0.58005986,2060.1,2059.4,0.5867391]
[1773338547477,0.58036781,2059.9,2059.4,0.5867391]
[1773338547675,0.58036781,2059.9,2059.4,0.0192562]
[1773338547876,0.24268,2060.0,2059.2,0.022]
[1773338547877,0.58036781,2059.7,2059.2,0.022]
[1773338548776,0.58514154,2059.7,2059.2,0.022]
[1773338549676,0.58514154,2059.7,2059.2,0.58555515]
[1773338550081,0.00477373,2059.7,2059.2,0.58555515]
[1773338550977,0.57985476,2060.0,2059.2,0.58555515]
[1773338551881,0.58367478,2060.0,2059.2,0.59022249]
[1773338552579,0.00382002,2060.0,2059.2,0.59022249]
[1773338553276,0.00382002,2060.0,2059.5,0.56355515]
[1773338553475,0.58647018,2060.2,2059.5,0.56355515]
[1773338553875,0.58647018,2059.8,2059.2,6.02109453]
[1773338554073,0.24269,2059.9,2059.2,0.59022249]
[1773338554074,0.24271,2059.7,2059.2,0.59022249]
[1773338554279,0.58647018,2060.1,2059.2,0.59022249]
[1773338554677,0.58647018,2060.1,2059.3,0.56355515]
[1773338555585,0.59033643,2060.1,2059.3,0.56355515]
[1773338556581,0.58809432,2059.9,2059.2,0.59022249]
[1773338558084,0.83079432,2059.8,2059.2,0.59022249]
[1773338558579,0.58809432,2059.7,2059.2,0.59022249]
[1773338561989,0.59196057,2060.1,2059.2,0.59022249]
[1773338562191,0.00386625,2060.1,2059.3,0.58850887]
[1773338562488,0.00386625,2060.1,2059.4,0.58850887]
[1773338563889,0.54239567,2060.1,2059.4,0.58850887]
[1773338564087,0.54239567,2060.1,2059.4,6.58293606]
[1773338564388,0.53852942,2059.9,2059.4,0.58850887]
[1773338566381,0.24268,2060.0,2059.4,0.58850887]
[1773338566584,0.78122942,2059.8,2059.4,0.58850887]
[1773338567281,0.2427,2059.8,2059.4,0.58850887]
[1773338567889,0.76900495,2059.8,2059.4,0.58850887]
[1773338568485,0.52630495,2059.7,2059.3,6.94850887]
[1773338568690,0.2427,2059.8,2059.4,0.58850887]
[1773338569190,0.76842649,2059.8,2059.4,0.58850887]
[1773338569888,0.52572649,2059.7,2059.4,0.58850887]
[1773338570488,0.52572649,2059.7,2059.3,6.36]
[1773338570890,0.52450422,2059.5,2059.2,0.02666734]
[1773338571095,0.59643331,2059.3,2058.8,0.022]
[1773338571393,0.59643331,2059.3,2058.6,0.57878417]
[1773338572096,0.24277,2059.2,2058.6,0.5850794]
[1773338572493,0.83920331,2059.2,2058.6,0.5850794]
[1773338574195,0.24277,2059.2,2058.6,0.5850794]
[1773338575304,0.24273,2059.6,2058.7,0.55678417]
[1773338575495,0.24273,2059.6,2058.9,0.55678417]
[1773338577105,0.59643331,2059.9,2058.9,0.55678417]
[1773338577899,0.83913331,2059.8,2058.9,0.55678417]
[1773338578203,0.59643331,2059.7,2058.9,0.55678417]
[1773338579298,0.59643331,2059.5,2058.9,0.55678417]
[1773338580203,5.9703,2059.9,2058.9,0.55678417]
[1773338580204,0.59643331,2059.3,2058.9,0.55678417]
[1773338580399,0.59643331,2059.1,2058.6,0.02829523]
[1773338580603,0.24279,2059.0,2058.6,0.5850794]
[1773338580998,0.59643331,2058.9,2058.6,0.02829523]
[1773338581199,0.59643331,2058.9,2058.4,0.57878417]
[1773338581399,0.24279,2059.0,2058.4,0.57878417]
[1773338581805,0.59643331,2058.9,2058.4,0.57878417]
[1773338582405,0.59643331,2058.9,2058.4,0.58123971]
[1773338582704,0.59643331,2058.9,2058.4,0.02445554]
[1773338582901,0.59643331,2058.7,2058.2,0.57878417]
[1773338583101,0.59643331,2058.5,2058.2,0.022]
[1773338583406,0.59643331,2058.5,2058.1,0.55678417]
[1773338583606,0.24284,2058.6,2058.1,0.55678417]
[1773338583806,0.00434495,2058.6,2058.1,0.55678417]
[1773338585703,0.59643331,2059.0,2058.1,0.55678417]
[1773338586608,0.59643331,2058.8,2058.1,0.55678417]
[1773338586906,0.60170787,2058.8,2058.1,0.56112912]
[1773338588008,0.00527456,2058.8,2058.1,0.56112912]
[1773338588907,0.60170787,2058.8,2058.1,0.56112912]
[1773338590205,0.00527456,2058.8,2058.2,0.79972417]
[1773338590405,0.00527456,2058.8,2058.3,0.80027417]
[1773338590600,0.59643331,2059.2,2058.6,0.55678417]
[1773338591104,0.24276,2059.4,2058.1,0.00434495]
[1773338591105,0.59643331,2059.0,2058.2,0.55678417]
[1773338591504,0.60104573,2059.0,2058.2,0.55678417]
[1773338591707,0.59643331,2058.8,2058.2,0.55678417]
[1773338594204,0.59643331,2058.6,2058.1,0.00434495]
[1773338595610,0.59643331,2058.6,2058.1,0.56112912]
[1773338596317,0.24283,2058.7,2058.1,0.56112912]
[1773338596611,0.60104573,2059.0,2058.1,0.56112912]
[1773338596813,0.24278,2059.2,2058.1,0.56112912]
[1773338596814,0.83921331,2059.2,2058.1,0.56112912]
[1773338597008,0.24278,2059.2,2058.1,0.56112912]
[1773338597215,0.83921331,2059.2,2058.2,0.55678417]
[1773338597716,0.59643331,2059.1,2058.2,0.55678417]
[1773338597915,0.59988162,2059.1,2058.2,0.55678417]
[1773338598213,0.59988162,2059.1,2058.5,0.55678417]
[1773338598415,0.59988162,2059.1,2058.7,0.80272417]
[1773338598631,0.59643331,2059.5,2058.8,0.55678417]
[1773338599715,0.60204804,2059.5,2058.8,0.55678417]
[1773338601924,0.60204804,2059.5,2058.6,0.56458687]
[1773338601925,0.54927075,2059.3,2058.6,0.56458687]
[1773338603325,0.24275,2059.4,2058.6,0.56458687]
[1773338603623,0.79202075,2059.4,2058.6,0.56458687]
[1773338603826,0.54927075,2059.3,2058.6,0.56458687]
[1773338604026,0.54927075,2058.9,2058.4,0.56458687]
[1773338604221,0.54927075,2058.9,2058.1,0.56893182]
[1773338604621,0.54927075,2058.7,2058.1,0.56893182]
[1773338604821,0.79209075,2058.8,2058.1,0.56893182]
[1773338605533,0.54927075,2058.7,2058.1,0.56893182]
[1773338610333,0.54927075,2058.5,2058.1,0.00434495]
[1773338611033,0.54927075,2058.5,2058.0,0.022]
[1773338611234,0.54927075,2058.3,2057.8,0.022]
[1773338611739,5.57568369,2058.7,2057.6,0.022]
[1773338611740,0.54927075,2058.1,2057.6,0.022]
[1773338612132,0.54927075,2058.1,2057.6,0.02716315]
[1773338612732,0.54927075,2057.9,2057.4,0.022]
[1773338612940,0.54927075,2057.9,2057.2,0.022]
[1773338613134,0.54927075,2057.7,2057.2,0.022]
[1773338613631,0.55415117,2057.7,2057.2,0.022]
[1773338613840,0.55415117,2057.7,2057.2,0.02567256]
[1773338614334,0.55415117,2057.7,2057.0,0.022]
[1773338615135,0.55415117,2057.7,2057.0,0.02622667]
[1773338615837,0.54927075,2057.5,2056.8,0.022]
[1773338616841,0.54927075,2057.3,2056.8,0.022]
[1773338617431,0.54927075,2057.3,2056.8,0.58658687]
[1773338619242,0.54927075,2057.5,2056.8,0.58658687]
[1773338620742,0.54927075,2057.5,2057.1,0.56458687]
[1773338620940,0.54927075,2057.5,2057.1,0.81069687]
[1773338621342,0.54927075,2057.5,2057.0,0.56458687]
[1773338621843,0.54927075,2057.5,2056.8,0.022]
[1773338622143,0.54927075,2057.5,2057.1,0.56458687]
[1773338622442,0.57736938,2057.9,2057.5,0.86432005]
[1773338622643,0.57736938,2058.5,2057.7,0.62000005]
[1773338623131,0.57736938,2058.5,2057.8,0.86301005]
[1773338623337,0.57736938,2058.5,2057.9,0.62000005]
[1773338623640,0.5819212,2058.5,2057.9,0.00515333]
[1773338624038,0.5819212,2058.5,2057.9,0.62515338]
[1773338625037,0.5819212,2058.5,2058.0,0.62000005]
[1773338625239,0.00455182,2058.5,2058.2,0.62000005]
[1773338625436,0.57736938,2058.7,2058.0,0.62000005]
[1773338625837,0.57736938,2058.7,2058.1,0.86294005]
[1773338626043,0.57736938,2058.7,2058.1,0.62000005]
[1773338626439,0.58274731,2058.7,2058.1,0.62000005]
[1773338628340,0.58274731,2058.7,2057.9,0.62515338]
[1773338629340,0.58274731,2058.7,2058.0,0.62000005]
[1773338629537,0.00537793,2058.7,2058.1,0.86685005]
[1773338629737,0.57736938,2058.9,2058.4,0.62000005]
[1773338630143,0.57736938,2058.9,2058.4,0.87051005]
[1773338630450,0.57736938,2059.2,2058.7,0.89135619]
[1773338630648,0.02936658,2059.2,2058.7,0.64268619]
[1773338630843,0.02936658,2059.2,2058.0,0.64268619]
[1773338631240,0.02936658,2059.2,2058.0,0.88685619]
[1773338631442,0.02936658,2059.2,2058.1,0.89291619]
[1773338631642,0.02936658,2059.2,2058.2,0.89104619]
[1773338631844,0.02936658,2059.2,2057.9,0.00515333]
[1773338631845,0.02936658,2059.2,2058.3,0.89303619]
[1773338632148,0.65861645,2059.0,2058.0,0.88707619]
[1773338632348,0.65861645,2058.6,2057.9,0.00515333]
[1773338633748,0.65861645,2058.4,2057.9,0.00515333]
[1773338634137,0.65861645,2058.4,2057.9,0.64783952]
[1773338634340,0.65861645,2058.9,2057.9,0.64783952]
[1773338638549,0.65861645,2058.7,2057.9,0.64783952]
[1773338639749,0.00435686,2059.2,2058.3,0.64268619]
[1773338640061,0.65861645,2059.0,2058.3,0.64268619]
[1773338640252,0.00435686,2059.2,2057.9,0.24807333]
[1773338640253,0.65861645,2058.8,2058.1,0.64268619]
[1773338640553,0.65861645,2059.1,2058.1,0.64268619]
[1773338640953,0.65861645,2058.9,2058.1,0.64268619]
[1773338641750,0.65861645,2058.9,2058.2,0.64268619]
[1773338641945,0.65861645,2059.1,2058.6,0.64268619]
[1773338642452,0.65861645,2059.1,2058.6,0.88731619]
[1773338642756,0.65861645,2059.1,2058.7,0.88681619]
[1773338642956,0.00435686,2059.2,2058.8,0.88561619]
[1773338643153,0.00435686,2059.2,2058.2,2.83504453]
[1773338643154,1.16461645,2059.3,2058.9,0.64268619]
[1773338643553,0.65861645,2059.2,2058.7,0.64268619]
[1773338643754,0.65861645,2059.0,2058.0,0.64268619]
[1773338644058,0.6647383,2059.0,2058.0,0.64268619]
[1773338644356,0.65861645,2058.8,2058.0,0.64268619]
[1773338644655,0.65861645,2058.4,2057.9,0.00515333]
[1773338644860,0.65861645,2058.2,2057.6,0.64268619]
[1773338645054,0.65861645,2058.2,2057.1,0.64268619]
[1773338645955,0.24288,2058.3,2057.2,0.64268619]
[1773338646145,0.65861645,2058.2,2057.2,0.64268619]
[1773338646548,0.65861645,2058.2,2057.5,0.64268619]
[1773338646852,0.65861645,2058.2,2057.8,0.64268619]
[1773338647057,0.65861645,2058.2,2057.2,0.88594619]
[1773338647355,0.65861645,2058.4,2057.8,0.64268619]
[1773338647563,0.65861645,2058.4,2057.8,0.89658619]
[1773338647748,0.65861645,2058.4,2057.9,0.89397619]
[1773338648147,0.65861645,2058.4,2057.9,0.64268619]
[1773338648352,0.65861645,2058.3,2057.3,0.64268619]
[1773338649053,0.24287,2058.4,2057.5,0.64268619]
[1773338649255,0.65861645,2058.5,2057.9,0.64268619]
[1773338650261,0.65861645,2058.5,2057.5,0.64268619]